bitfinex-derivatives/quotes_ETHF0:USTF0_20240923
["timestamp","ask_amount","ask_price","bid_price","bid_amount"]
[1727114580396,0.37458,2669.5,2669.4,0.97825085]
[1727114580599,0.37458,2669.5,2669.4,3.42610664]
[1727114580800,1.3546605,2669.5,2669.4,1.31156228]
[1727114580988,1.3546605,2669.5,2669.4,0.37458]
[1727114581498,1.3546605,2669.5,2669.4,1.35283085]
[1727114582201,0.9800805,2669.5,2669.4,1.35283085]
[1727114582501,0.9800805,2669.5,2669.4,2.28932085]
[1727114582694,1.3546405,2669.7,2669.4,5.73729255]
[1727114582889,1.35636389,2669.7,2669.6,0.37456]
[1727114583495,0.98180389,2669.8,2669.7,0.37455]
[1727114583699,1.34690389,2669.9,2669.8,0.37454]
[1727114583901,0.98180389,2669.9,2669.8,2.29128873]
[1727114584094,0.3896,2670.1,2670.0,0.37451]
[1727114584300,0.3896,2670.1,2670.0,1.35466489]
[1727114585399,0.98180389,2670.2,2670.1,0.37449]
[1727114587902,0.98180389,2670.2,2670.0,0.3745]
[1727114588198,0.98180389,2670.2,2670.1,0.37449]
[1727114589406,0.37451,2670.0,2669.8,1.35468489]
[1727114589607,0.3648,2669.9,2669.8,0.98015489]
[1727114589908,1.12142,2669.9,2669.7,1.35469489]
[1727114590201,0.3905,2669.8,2669.7,1.35469489]
[1727114590409,0.3905,2669.8,2669.7,2.87706687]
[1727114590598,0.3905,2669.8,2669.7,4.01229442]
[1727114590906,0.3905,2669.8,2669.7,2.87706687]
[1727114591204,0.76504,2669.8,2669.7,1.52237198]
[1727114591706,0.76504,2669.8,2669.7,0.58552765]
[1727114591707,1.74603593,2669.8,2669.7,0.58552765]
[1727114592009,0.37455,2669.7,2669.6,0.37456]
[1727114592194,0.37455,2669.7,2669.6,0.96013039]
[1727114592195,1.35579362,2669.7,2669.6,0.96013039]
[1727114593402,0.98124362,2669.7,2669.6,0.96013653]
[1727114593709,0.98124362,2669.7,2669.6,1.89702945]
[1727114593904,1.37174362,2669.8,2669.7,0.37455]
[1727114594304,1.37174362,2669.8,2669.7,0.96009608]
[1727114594502,0.98124362,2669.8,2669.7,0.96009608]
[1727114594703,1.34604362,2669.9,2669.8,0.37454]
[1727114594909,0.3648,2669.9,2669.8,1.89691808]
[1727114595298,0.98124362,2670.0,2669.9,0.37452]
[1727114595505,0.98124362,2670.0,2669.9,0.95999823]
[1727114596926,2.45443155,2670.0,2669.9,0.58547823]
[1727114597108,1.47318793,2670.0,2669.9,0.37452]
[1727114597710,1.84769793,2670.0,2669.9,0.37452]
[1727114600808,1.47318793,2670.0,2669.9,0.37452]
[1727114602213,1.84769793,2670.0,2669.9,0.37452]
[1727114602415,0.37451,2670.0,2669.9,0.37452]
[1727114602715,1.35564113,2670.0,2669.9,0.37452]
[1727114604021,0.98113113,2670.0,2669.9,0.96005393]
[1727114604317,0.98113113,2670.0,2669.9,0.96004155]
[1727114605214,2.12015332,2670.1,2670.0,0.37451]
[1727114605608,2.4946415,2670.1,2670.0,0.37451]
[1727114605911,2.98677793,2670.1,2670.0,0.37451]
[1727114607509,2.49458211,2670.1,2670.0,0.95999978]
[1727114607712,2.49457436,2670.1,2670.0,0.95999804]
[1727114608015,1.51359,2670.1,2670.0,0.95999435]
[1727114608408,2.44983,2670.1,2670.0,0.58548435]
[1727114608610,0.37453,2669.9,2669.8,0.37452]
[1727114608814,0.37453,2669.9,2669.8,0.96002955]
[1727114609115,4.56335368,2669.9,2669.8,0.96002955]
[1727114609309,1.35555368,2669.9,2669.8,0.96002955]
[1727114610413,0.37453,2669.9,2669.8,0.96002955]
[1727114610818,1.35579859,2669.9,2669.8,0.96002955]
[1727114611523,2.78402793,2669.9,2669.8,0.96002955]
[1727114611719,1.31084,2669.9,2669.8,0.96006681]
[1727114612312,2.78402793,2669.9,2669.8,0.96006681]
[1727114612620,2.78402793,2669.9,2669.8,0.58554681]
[1727114612808,0.37456,2669.6,2669.5,0.37457]
[1727114613009,0.37456,2669.6,2669.5,1.94032082]
[1727114613316,2.49063013,2669.6,2669.5,0.96016593]
[1727114614021,1.50906,2669.6,2669.5,1.94032082]
[1727114614514,1.50906,2669.6,2669.5,4.01268486]
[1727114614717,0.7529,2669.6,2669.5,4.94913486]
[1727114615014,0.7529,2669.6,2669.5,4.9500778]
[1727114615214,0.98157013,2669.7,2669.6,0.37456]
[1727114615410,0.3618,2669.7,2669.6,1.94126784]
[1727114615812,0.3618,2669.7,2669.6,2.87809247]
[1727114616111,0.3618,2669.7,2669.6,2.29254636]
[1727114616416,0.73635,2669.7,2669.6,2.87808523]
[1727114616619,0.7396,2669.7,2669.6,2.87808523]
[1727114616926,1.72117013,2669.7,2669.6,1.94121844]
[1727114617618,2.09572013,2669.7,2669.6,1.94121844]
[1727114617815,1.11415,2669.7,2669.6,1.94121844]
[1727114618019,2.09572013,2669.7,2669.6,0.96010653]
[1727114618220,2.09572013,2669.7,2669.6,0.58554653]
[1727114618523,5.25833,2669.7,2669.6,0.58554653]
[1727114618719,3.03228284,2669.7,2669.6,0.58554653]
[1727114619014,3.52288519,2669.7,2669.6,0.96010653]
[1727114619220,2.05053,2669.7,2669.6,0.96010653]
[1727114619429,3.03227839,2669.7,2669.6,0.37456]
[1727114619606,3.03227839,2669.7,2669.5,0.98111191]
[1727114619607,1.31098,2669.6,2669.5,0.98111191]
[1727114619810,2.40877519,2669.6,2669.3,0.98111191]
[1727114620026,2.29291954,2669.4,2669.3,0.37461]
[1727114620315,2.78383931,2669.4,2669.3,0.58564485]
[1727114620618,2.78383931,2669.4,2669.2,0.37461]
[1727114620619,0.37461,2669.3,2669.2,0.37461]
[1727114620822,2.08352474,2669.3,2669.2,0.96027023]
[1727114621019,3.02004474,2669.3,2669.2,0.96027023]
[1727114621616,3.02004474,2669.3,2669.2,0.58566023]
[1727114621811,2.08352474,2669.3,2669.2,0.58566023]
[1727114622011,2.08352474,2669.3,2669.2,0.96028023]
[1727114622216,1.70891474,2669.3,2669.2,0.96028023]
[1727114622419,1.70891474,2669.3,2669.2,1.94139214]
[1727114622420,0.7272,2669.3,2669.2,1.94139214]
[1727114622623,0.7272,2669.3,2669.2,2.87839306]
[1727114623017,0.7272,2669.3,2669.2,1.94139214]
[1727114623215,0.7272,2669.3,2669.2,1.35573191]
[1727114623413,0.98171474,2669.5,2669.4,0.37459]
[1727114623815,0.37459,2669.4,2669.3,0.37461]
[1727114624023,1.74391307,2669.4,2669.3,0.37461]
[1727114624214,0.37461,2669.3,2669.2,0.37461]
[1727114624421,0.75141,2669.3,2669.2,0.960265]
[1727114624619,0.75141,2669.3,2669.2,0.585655]
[1727114624825,1.14311,2669.3,2669.2,0.960275]
[1727114625726,1.14311,2669.3,2669.2,0.585655]
[1727114626219,0.37462,2669.2,2669.1,4.56354191]
[1727114626411,0.37462,2669.2,2669.1,5.14919873]
[1727114626616,0.37462,2669.2,2669.1,4.16808682]
[1727114627725,0.37462,2669.2,2669.1,0.96031285]
[1727114628525,0.37462,2669.2,2669.1,0.58568285]
[1727114628716,6.21242,2669.2,2669.0,40.8]
[1727114628911,7.19384307,2669.2,2669.1,0.37463]
[1727114629716,0.37464,2669.1,2669.0,0.37464]
[1727114630225,6.81922307,2669.2,2668.9,0.37465]
[1727114630226,0.37465,2669.0,2668.9,0.37465]
[1727114630523,0.37469,2668.7,2668.6,1.35581191]
[1727114630727,1.31142,2668.7,2668.6,0.58576963]
[1727114630923,0.93677,2668.6,2668.2,0.98111191]
[1727114631129,0.37476,2668.2,2668.1,0.37477]
[1727114631621,0.7643,2668.2,2668.1,0.37477]
[1727114631818,1.1365,2668.2,2668.1,0.37477]
[1727114632316,0.7504,2668.2,2668.1,0.37477]
[1727114632922,0.3722,2668.2,2668.1,0.73467]
[1727114633220,0.37473,2668.4,2668.3,0.37475]
[1727114633422,0.74693,2668.4,2668.3,0.37475]
[1727114633620,0.74693,2668.4,2668.2,0.75205]
[1727114633621,0.37475,2668.3,2668.2,0.75205]
[1727114633819,0.37475,2668.3,2668.2,0.37475]
[1727114634626,0.74694,2668.4,2668.3,0.37475]
[1727114636226,0.3722,2668.4,2668.3,0.37475]
[1727114637623,0.37475,2668.3,2668.2,0.37475]
[1727114638627,3.0022,2668.4,2667.9,3.9228]
[1727114638628,3.37694,2668.4,2668.3,0.37475]
[1727114639124,0.3722,2668.4,2668.3,0.37475]
[1727114639930,0.37475,2668.3,2667.9,3.2078]
[1727114640125,3.37694,2668.4,2668.3,0.37475]
[1727114640532,0.37476,2668.3,2668.2,0.37476]
[1727114641626,0.37478,2668.2,2668.1,0.37477]
[1727114641822,5.8378,2668.2,2667.8,0.3587]
[1727114642021,0.3748,2668.0,2667.9,0.37479]
[1727114642231,0.93701,2667.9,2667.6,0.37483]
[1727114642530,2.63,2667.7,2667.6,0.37483]
[1727114643128,3.7488,2667.6,2667.1,0.93729]
[1727114643333,3.7488,2667.6,2666.5,0.087]
[1727114643334,4.68055931,2667.4,2666.5,0.087]
[1727114643628,2.63,2666.7,2666.3,0.8196]
[1727114643826,2.63,2666.7,2666.5,0.37499]
[1727114644019,2.63,2666.7,2666.4,0.37501]
[1727114644236,2.63,2666.7,2666.3,0.3743]
[1727114644237,0.375,2666.5,2666.3,0.3743]
[1727114644530,0.375,2666.5,2666.2,40.8]
[1727114644531,2.63,2666.4,2665.9,0.37508]
[1727114644828,2.63,2666.1,2666.0,40.8]
[1727114645333,2.63,2666.1,2665.9,0.3743]
[1727114645744,3.00506,2666.1,2665.8,0.3851]
[1727114645937,3.00506,2666.1,2665.8,41.1851]
[1727114646231,3.00506,2666.1,2665.8,40.8]
[1727114647325,2.63,2666.1,2665.8,40.8]
[1727114647523,2.63,2666.1,2665.8,41.17509]
[1727114647931,3.3609,2666.4,2665.8,40.8]
[1727114648130,2.63,2666.6,2665.8,40.8]
[1727114648330,3.005,2666.6,2666.1,0.37505]
[1727114648725,3.005,2666.6,2666.2,0.3709]
[1727114649138,0.375,2666.5,2666.2,0.3709]
[1727114652045,3.00499,2666.6,2666.2,0.74593]
[1727114652247,2.63,2666.6,2666.3,0.37502]
[1727114652647,2.63,2666.6,2666.2,0.74593]
[1727114652648,3.00499,2666.6,2666.2,0.74593]
[1727114653046,2.63,2666.6,2666.3,0.37503]
[1727114653655,3.00499,2666.6,2666.3,0.37503]
[1727114653948,0.37501,2666.5,2666.2,0.3709]
[1727114654851,0.37501,2666.5,2666.2,0.74594]
[1727114655049,0.37501,2666.5,2666.2,0.3709]
[1727114655259,2.63,2666.6,2666.2,0.3709]
[1727114655449,0.37501,2666.5,2666.2,0.3709]
[1727114655649,0.37501,2666.4,2666.2,0.3709]
[1727114655845,0.37501,2666.5,2666.2,0.3709]
[1727114656156,0.37501,2666.5,2666.2,0.74594]
[1727114656545,0.37501,2666.5,2666.2,0.3709]
[1727114656851,0.37501,2666.5,2666.2,0.74594]
[1727114660659,0.37501,2666.5,2666.3,0.37503]
[1727114661056,0.37501,2666.5,2666.2,0.74594]
[1727114662749,0.37501,2666.5,2666.3,0.37503]
[1727114662950,3.58279,2666.6,2666.3,0.37503]
[1727114663256,3.5812,2666.9,2666.3,0.93757]
[1727114663450,5.37733,2667.3,2666.3,0.93757]
[1727114663451,0.4509,2667.3,2666.6,3.2078]
[1727114663652,0.37491,2667.2,2667.0,0.37493]
[1727114663866,0.37491,2667.2,2667.1,41.1761]
[1727114664461,3.00489,2667.3,2667.1,0.75101]
[1727114664865,3.00489,2667.3,2667.2,40.8]
[1727114665363,3.00489,2667.3,2667.1,0.3761]
[1727114665755,3.00489,2667.3,2667.1,41.1761]
[1727114665950,0.3749,2667.2,2667.1,41.1761]
[1727114666361,0.3749,2667.2,2667.1,0.3761]
[1727114668460,0.765,2667.2,2667.1,0.3761]
[1727114668658,1.70226,2667.2,2667.1,0.3761]
[1727114668863,0.765,2667.2,2667.1,0.3761]
[1727114670760,0.37493,2667.0,2666.9,0.37494]
[1727114671669,0.37493,2667.0,2666.8,0.3569]
[1727114671670,6.21272,2667.1,2667.0,0.37493]
[1727114671859,0.37493,2667.0,2666.9,0.37493]
[1727114672564,6.21272,2667.1,2667.0,0.37493]
[1727114672768,3.58272,2667.1,2667.0,0.37493]
[1727114674175,0.37494,2667.0,2666.9,0.37494]
[1727114674466,3.58272,2667.1,2667.0,0.37493]
[1727114674663,0.37494,2667.0,2666.9,0.37494]
[1727114674972,0.37494,2666.9,2666.8,0.73185]
[1727114675159,0.37494,2667.0,2666.9,0.37494]
[1727114675962,5.8378,2667.1,2666.8,0.73185]
[1727114675963,0.37494,2666.9,2666.8,0.73185]
[1727114676164,0.37494,2666.9,2666.8,0.3569]
[1727114676370,0.37497,2666.7,2666.6,3.58278]
[1727114676569,0.37495,2666.9,2666.8,0.37495]
[1727114677758,0.37497,2666.8,2666.6,3.5658]
[1727114677963,0.93737,2666.9,2666.7,0.37497]
[1727114678265,0.37497,2666.8,2666.7,0.37497]
[1727114679472,0.37495,2666.9,2666.8,0.37495]
[1727114680472,0.37494,2667.0,2666.9,0.37493]
[1727114680768,3.2078,2667.1,2667.0,0.37493]
[1727114681671,3.2078,2667.1,2667.0,1.11593]
[1727114684370,3.58272,2667.1,2667.0,1.11593]
[1727114684670,3.2078,2667.1,2667.0,1.11593]
[1727114685670,3.58272,2667.1,2667.0,1.11593]
[1727114685870,3.2078,2667.1,2667.0,1.11593]
[1727114686069,3.58272,2667.1,2667.0,1.11593]
[1727114686266,3.58272,2667.1,2667.0,0.741]
[1727114686467,3.58272,2667.1,2667.0,1.11593]
[1727114686666,3.58272,2667.1,2667.0,0.741]
[1727114686867,3.58272,2667.1,2667.0,1.11593]
[1727114688277,4.56356818,2667.1,2667.0,0.741]
[1727114688794,4.56356818,2667.1,2667.0,0.81]
[1727114689377,9.06816818,2667.1,2667.0,0.069]
[1727114689574,13.66557931,2667.1,2667.0,0.069]
[1727114689770,8.44322,2667.1,2667.0,0.069]
[1727114689969,12.19282,2667.1,2667.0,0.069]
[1727114690773,14.15707057,2667.1,2667.0,0.069]
[1727114692275,12.19282,2667.1,2667.0,0.069]
[1727114692871,14.15239271,2667.1,2667.0,0.069]
[1727114693076,12.19282,2667.1,2667.0,0.069]
[1727114693482,14.64793955,2667.1,2667.0,0.069]
[1727114693776,12.19282,2667.1,2667.0,0.069]
[1727114694077,11.25552,2667.1,2667.0,0.069]
[1727114694577,13.21581192,2667.1,2667.0,0.069]
[1727114696174,9.46621192,2667.1,2667.0,0.069]
[1727114696379,13.21581192,2667.1,2667.0,0.069]
[1727114696578,9.46621192,2667.1,2667.0,0.069]
[1727114696879,9.11031192,2667.1,2667.0,0.069]
[1727114697084,5.54301192,2667.1,2667.0,0.44393]
[1727114697276,5.16809192,2667.1,2667.0,0.44393]
[1727114697582,3.2078,2667.1,2667.0,0.44393]
[1727114698085,4.67854471,2667.1,2667.0,0.44393]
[1727114698376,3.58272,2667.1,2667.0,0.059]
[1727114698674,3.58272,2667.1,2667.0,0.43393]
[1727114699376,3.58272,2667.1,2667.0,0.059]
[1727114699377,8.17301192,2667.1,2667.0,0.059]
[1727114699973,8.17301192,2667.1,2667.0,0.43393]
[1727114700169,6.21272,2667.1,2667.0,0.059]
[1727114700371,9.11031192,2667.1,2667.0,0.059]
[1727114700583,9.60513955,2667.1,2667.0,0.059]
[1727114700872,0.37502,2666.4,2666.2,3.419]
[1727114701073,0.37502,2666.4,2666.3,2.29372133]
[1727114701280,1.35568378,2666.4,2666.3,1.35567743]
[1727114701474,0.98066378,2666.4,2666.3,1.73074851]
[1727114701781,0.98066378,2666.4,2666.3,1.14443]
[1727114701969,1.35567378,2666.4,2666.3,0.7694]
[1727114702166,0.37501,2666.4,2666.3,0.7694]
[1727114702370,1.84600567,2666.4,2666.3,0.7694]
[1727114702678,1.84600567,2666.4,2666.3,1.14442]
[1727114702679,0.98086725,2666.4,2666.3,1.14442]
[1727114703276,1.35587725,2666.4,2666.3,1.73072961]
[1727114703574,1.35587725,2666.4,2666.3,1.73073816]
[1727114703768,1.35587725,2666.4,2666.3,1.14442]
[1727114703972,0.98086725,2666.4,2666.3,1.14442]
[1727114704172,0.98086725,2666.4,2666.3,1.73071841]
[1727114704373,0.98086725,2666.5,2666.4,0.37501]
[1727114704584,0.98041617,2666.5,2666.4,0.58629841]
[1727114704777,0.98041617,2666.6,2666.5,0.375]
[1727114704983,1.47099567,2666.6,2666.5,0.375]
[1727114705187,1.84598567,2666.6,2666.4,0.375]
[1727114705477,0.98040904,2666.5,2666.4,0.37501]
[1727114706781,0.98040904,2666.5,2666.4,4.71168416]
[1727114706977,0.98040904,2666.7,2666.6,0.37499]
[1727114707180,0.98040904,2666.7,2666.6,0.96126416]
[1727114707377,0.98040904,2666.7,2666.6,0.37498]
[1727114707579,5.05376567,2666.8,2666.6,0.37498]
[1727114707774,4.67879567,2666.8,2666.7,0.37497]
[1727114707976,5.05375567,2666.8,2666.7,0.37497]
[1727114708982,4.67879567,2666.8,2666.7,0.37497]
[1727114709379,0.37498,2666.7,2666.3,2.2432207]
[1727114709683,1.35539438,2666.5,2666.3,1.14442]
[1727114710186,0.98039438,2666.4,2666.3,1.14442]
[1727114710783,0.98039438,2666.4,2666.3,1.73070704]
[1727114710972,0.98039438,2666.5,2666.3,1.73070704]
[1727114711178,0.98039438,2666.6,2666.5,0.375]
[1727114711580,0.98039438,2666.6,2666.5,4.1254]
[1727114711780,0.98039438,2666.6,2666.5,4.71168704]
[1727114712390,0.98039438,2666.7,2666.6,0.37499]
[1727114712683,0.98039952,2666.7,2666.6,0.96123103]
[1727114712877,0.98039952,2666.7,2666.6,0.37499]
[1727114712878,1.47099567,2666.7,2666.6,0.37499]
[1727114713282,1.47099567,2666.7,2666.6,0.96124288]
[1727114713981,4.67879567,2666.8,2666.7,0.37497]
[1727114714289,3.2078,2666.8,2666.7,0.37497]
[1727114714487,1.47077614,2666.8,2666.7,0.37497]
[1727114715385,4.67857614,2666.8,2666.7,0.37497]
[1727114715590,3.2078,2666.8,2666.7,0.37497]
[1727114715889,3.58276,2666.8,2666.6,0.37498]
[1727114716091,0.98050034,2666.7,2666.6,0.37498]
[1727114716385,0.98050034,2666.7,2666.6,0.96121041]
[1727114716891,0.37496,2666.8,2666.7,0.37497]
[1727114717082,1.84579811,2666.8,2666.7,0.37497]
[1727114717282,5.16912756,2666.9,2666.3,2.7890807]
[1727114717483,0.98051229,2666.7,2666.4,4.12569678]
[1727114717686,0.98051229,2666.7,2666.5,0.58625857]
[1727114717886,0.98051229,2666.7,2666.6,0.96122857]
[1727114717887,1.47076844,2666.7,2666.6,0.96122857]
[1727114718187,1.47076844,2666.7,2666.6,0.96122106]
[1727114719593,1.47076844,2666.7,2666.6,0.96122258]
[1727114719779,1.47076844,2666.7,2666.6,4.71162258]
[1727114720986,1.47076844,2666.7,2666.6,4.33665258]
[1727114721191,0.37501,2666.4,2666.3,0.3777]
[1727114721380,6.93096192,2666.4,2666.3,0.58627531]
[1727114721708,6.93096192,2666.4,2665.8,0.3675]
[1727114721709,1.3128,2665.9,2665.8,0.3675]
[1727114721884,0.37512,2665.7,2665.5,1.8489607]
[1727114722085,4.18990105,2665.8,2665.4,2.42624518]
[1727114722287,3.98723105,2665.6,2665.5,0.58643069]
[1727114722588,3.61210105,2665.6,2665.4,0.3675]
[1727114722785,3.98724105,2665.6,2665.4,0.3675]
[1727114722978,0.98210105,2665.7,2665.4,0.3675]
[1727114723293,0.37512,2665.7,2665.4,0.74265]
[1727114723477,0.37512,2665.7,2665.4,0.3675]
[1727114723784,6.81990105,2665.8,2665.5,40.8]
[1727114723785,0.37513,2665.6,2665.5,40.8]
[1727114724288,0.37513,2665.6,2665.4,0.3675]
[1727114724486,0.37513,2665.7,2665.4,0.3675]
[1727114724798,0.37513,2665.6,2665.4,41.1675]
[1727114725085,5.8378,2665.8,2665.4,41.1675]
[1727114725285,1.47315158,2666.0,2665.5,3.21643273]
[1727114725286,2.45525263,2666.0,2665.5,3.21643273]
[1727114725492,0.98210105,2666.3,2666.0,0.37507]
[1727114725791,0.37504,2666.3,2666.1,0.37505]
[1727114725981,0.37504,2666.3,2665.8,2.63]
[1727114726790,4.56230105,2666.4,2665.8,2.63]
[1727114726791,3.95522,2666.4,2665.9,0.58633975]
[1727114727090,3.58282,2666.4,2666.0,0.3813]
[1727114727293,3.58282,2666.4,2666.1,0.37505]
[1727114727992,0.37503,2666.3,2666.1,0.37506]
[1727114728291,0.36503,2666.3,2666.0,0.3813]
[1727114728686,0.36503,2666.3,2666.1,0.37506]
[1727114728893,5.8378,2666.4,2666.0,0.3813]
[1727114729088,0.37503,2666.3,2666.0,0.3813]
[1727114729283,0.37503,2666.3,2666.2,0.37504]
[1727114729490,0.37503,2666.3,2666.1,0.37504]
[1727114729687,5.8378,2666.4,2666.1,0.37504]
[1727114729891,0.37504,2666.2,2666.1,0.37504]
[1727114730090,0.37503,2666.3,2666.1,0.37504]
[1727114730290,0.37503,2666.3,2666.0,0.3813]
[1727114730494,0.37504,2666.3,2666.1,0.37505]
[1727114730687,0.37504,2666.2,2666.1,0.37505]
[1727114731294,0.37504,2666.2,2666.1,4.12545]
[1727114731592,0.37504,2666.2,2666.1,3.7504]
[1727114731795,0.37506,2666.1,2666.0,0.3813]
[1727114731983,2.63,2666.2,2665.6,5.2766207]
[1727114732292,3.39227,2666.0,2665.9,0.37508]
[1727114732492,3.39228,2666.0,2665.6,3.8028]
[1727114732693,3.39228,2666.0,2665.9,0.37508]
[1727114733086,3.0172,2666.0,2665.9,0.37508]
[1727114734089,2.63,2666.2,2665.7,1.31518]
[1727114734295,0.37506,2666.1,2666.0,0.37506]
[1727114734502,2.63,2666.2,2665.9,0.37508]
[1727114734503,0.37508,2666.0,2665.9,0.37508]
[1727114734696,0.37507,2666.1,2666.0,0.37506]
[1727114735209,0.37509,2666.0,2665.9,0.37508]
[1727114735591,9.589,2666.0,2665.5,1.4738207]
[1727114735896,9.589,2666.0,2665.1,7.16806074]
[1727114735897,0.37515,2665.5,2665.4,0.37514]
[1727114736086,0.37515,2665.5,2665.4,0.9616205]
[1727114736287,0.37515,2665.5,2665.4,0.37514]
[1727114736698,3.00514,2665.6,2665.5,0.37514]
[1727114737483,0.37517,2665.4,2665.3,0.37516]
[1727114737899,0.37517,2665.3,2665.2,41.17517]
[1727114738099,0.37517,2665.3,2665.2,41.7616846]
[1727114738302,0.37517,2665.3,2665.2,41.17517]
[1727114740294,0.37516,2665.4,2665.3,0.37516]
[1727114740493,2.63,2665.6,2665.2,40.8]
[1727114740494,3.56783,2665.6,2665.2,40.8]
[1727114740701,0.37515,2665.5,2665.4,0.37515]
[1727114741596,3.00514,2665.6,2665.2,40.8]
[1727114741790,0.37515,2665.5,2665.4,0.37514]
[1727114743303,3.00513,2665.6,2665.5,0.37514]
[1727114743502,0.37512,2665.7,2665.6,0.37511]
[1727114743797,0.3751,2665.8,2665.7,0.3751]
[1727114744006,0.74899,2665.9,2665.8,0.3751]
[1727114744306,3.2078,2666.3,2666.2,0.37504]
[1727114744797,3.2078,2666.3,2665.7,4.14559]
[1727114744798,0.37505,2666.2,2666.1,0.37505]
[1727114745708,0.37505,2666.2,2665.8,1.1416]
[1727114745709,3.58284,2666.3,2666.2,0.37504]
[1727114746110,0.37505,2666.2,2666.1,0.37505]
[1727114746400,0.37505,2666.2,2665.8,1.1416]
[1727114746401,6.21283,2666.3,2666.2,0.37504]
[1727114747115,0.37504,2666.2,2666.1,0.37505]
[1727114748200,3.00504,2666.3,2666.2,0.37504]
[1727114748395,2.63,2666.3,2666.2,0.37504]
[1727114748595,4.18990105,2666.6,2666.4,0.37501]
[1727114748803,4.56490105,2666.6,2666.5,0.375]
[1727114749102,3.5828,2666.6,2666.5,0.375]
[1727114749703,3.2078,2666.6,2666.5,0.375]
[1727114750011,3.58279,2666.6,2666.5,0.375]
[1727114753299,3.58279,2666.6,2666.3,0.381]
[1727114753300,2.63,2666.7,2666.6,0.37499]
[1727114753501,0.98210105,2667.1,2666.6,4.14526]
[1727114753707,0.98210105,2667.2,2667.1,0.37492]
[1727114753911,0.98210105,2667.3,2667.2,0.3749]
[1727114754107,0.98210105,2667.3,2667.1,0.3749]
[1727114754108,0.37489,2667.3,2667.1,0.3749]
[1727114755010,7.19670105,2667.4,2666.8,1.29549]
[1727114755209,0.37489,2667.3,2667.1,0.37491]
[1727114755904,7.57158105,2667.4,2666.8,0.3581]
[1727114756101,0.98210105,2667.5,2666.9,5.8378]
[1727114756312,0.3698,2667.8,2667.3,3.5672]
[1727114756506,0.3698,2667.8,2667.7,0.37483]
[1727114756701,0.3698,2667.8,2667.4,1.30267]
[1727114756702,7.08679,2668.0,2667.8,0.37481]
[1727114756909,3.00479,2668.0,2667.8,0.37481]
[1727114757820,0.7238,2668.1,2667.6,41.164]
[1727114757821,0.3698,2668.1,2667.6,41.164]
[1727114758013,0.74458,2668.1,2667.7,0.377]
[1727114758213,0.74458,2668.1,2667.8,0.37482]
[1727114758516,3.00479,2668.0,2667.7,0.37483]
[1727114758713,2.63,2668.0,2667.6,41.53884]
[1727114758918,0.3698,2668.1,2667.6,41.53884]
[1727114758919,2.63,2667.8,2667.6,41.53884]
[1727114759812,3.00482,2667.8,2667.6,41.53884]
[1727114760311,3.00483,2667.8,2667.6,0.37485]
[1727114760504,0.37484,2667.7,2667.5,0.37485]
[1727114761116,3.00482,2667.8,2667.6,0.37484]
[1727114761504,0.37483,2667.7,2667.5,0.37485]
[1727114761711,0.37485,2667.6,2667.4,0.74036]
[1727114761907,0.37485,2667.6,2667.5,0.37486]
[1727114762222,0.37484,2667.7,2667.6,0.37485]
[1727114762517,0.37484,2667.7,2667.4,0.3655]
[1727114762518,0.37484,2667.7,2667.5,0.37485]
[1727114762908,3.56707,2667.8,2667.4,0.37487]
[1727114763116,0.37486,2667.6,2667.4,0.37487]
[1727114763315,0.37486,2667.5,2667.4,0.37487]
[1727114763823,0.37486,2667.5,2667.2,3.5827]
[1727114763824,0.37489,2667.3,2667.2,3.5827]
[1727114764007,0.364,2667.4,2667.3,0.37489]
[1727114764319,0.73887,2667.4,2667.3,0.37489]
[1727114765915,0.37489,2667.3,2667.2,3.2078]
[1727114766112,0.37489,2667.3,2667.1,40.8]
[1727114766308,0.37489,2667.3,2667.2,0.3749]
[1727114766513,0.37491,2667.2,2667.1,0.37491]
[1727114767018,0.364,2667.4,2667.2,0.3749]
[1727114767019,0.37489,2667.3,2667.2,0.3749]
[1727114767215,0.364,2667.4,2667.3,0.37489]
[1727114767417,0.37489,2667.3,2667.2,0.3749]
[1727114768616,1.30121,2667.4,2667.0,0.3575]
[1727114768816,1.30121,2667.4,2667.2,0.3749]
[1727114768817,0.3749,2667.3,2667.2,0.3749]
[1727114770916,0.37494,2666.9,2666.8,0.3761]
[1727114771316,0.37494,2666.9,2666.8,41.55106]
[1727114771521,0.37494,2667.0,2666.9,0.37493]
[1727114772209,0.37494,2666.9,2666.8,0.75105]
[1727114772612,0.37494,2666.9,2666.8,0.3761]
[1727114772814,0.37499,2666.6,2666.5,0.37499]
[1727114773018,0.37501,2666.5,2666.4,0.375]
[1727114773317,0.37498,2666.7,2666.6,0.37498]
[1727114774020,7.64924,2667.3,2666.5,0.93751]
[1727114774212,3.5737,2667.2,2666.7,0.93742]
[1727114774521,3.5737,2667.2,2667.1,0.37492]
[1727114774522,3.94862,2667.2,2667.1,0.37492]
[1727114775015,0.74082,2667.2,2667.1,0.37492]
[1727114775222,0.37492,2667.1,2667.0,0.37492]
[1727114775618,0.74081,2667.2,2667.1,0.37492]
[1727114776423,0.37491,2667.2,2667.1,0.37492]
[1727114777919,0.37488,2667.4,2667.0,0.93732]
[1727114778121,4.14484,2667.9,2667.6,0.37483]
[1727114778423,4.14484,2667.9,2667.7,0.37483]
[1727114778424,0.3744,2667.9,2667.7,0.37483]
[1727114778625,0.37482,2667.8,2667.7,0.37483]
[1727114779019,0.37484,2667.7,2667.6,0.37484]
[1727114779323,0.37485,2667.6,2667.5,0.37486]
[1727114780421,0.37486,2667.5,2667.4,0.37486]
[1727114780923,0.37485,2667.6,2667.5,0.37485]
[1727114781714,3.56705,2667.8,2667.6,0.37484]
[1727114781715,0.37484,2667.7,2667.6,0.37484]
[1727114783317,0.74921,2667.9,2667.8,0.37482]